bitfinex-derivatives/quotes_BTCF0:USTF0_20250928
["timestamp","ask_amount","ask_price","bid_price","bid_amount"]
[1759066490854,0.0793271,109570.0,109560.0,1.261231]
[1759066491049,0.01315,109570.0,109560.0,2.022031]
[1759066495454,0.01398,109580.0,109570.0,0.1008826]
[1759066495649,0.11096085,109590.0,109580.0,0.1008743]
[1759066495845,0.13252655,109590.0,109580.0,0.4616743]
[1759066498057,0.13252655,109590.0,109580.0,1.3037543]
[1759066500756,0.0215657,109590.0,109580.0,1.3037543]
[1759066500953,0.0215657,109590.0,109580.0,1.7037543]
[1759066502060,0.08600921,109600.0,109580.0,1.7037543]
[1759066502255,0.13080239,109600.0,109590.0,0.100866]
[1759066504564,0.13080239,109600.0,109590.0,0.942746]
[1759066509770,0.10757239,109600.0,109590.0,1.303546]
[1759066510470,0.08600921,109600.0,109590.0,1.303546]
[1759066510872,0.10923921,109600.0,109590.0,1.303426]
[1759066511170,0.10923921,109600.0,109590.0,0.461666]
[1759066511366,0.10923921,109600.0,109590.0,1.303386]
[1759066514174,0.10923921,109600.0,109590.0,0.461666]
[1759066514563,0.10923921,109600.0,109590.0,1.303266]
[1759066515568,0.10923921,109600.0,109590.0,0.461666]
[1759066515773,0.10923921,109600.0,109590.0,1.303266]
[1759066516378,0.13006624,109600.0,109590.0,1.303226]
[1759066517873,0.10923921,109600.0,109590.0,1.303226]
[1759066522680,0.10923921,109600.0,109590.0,1.303106]
[1759066522868,0.13073802,109600.0,109590.0,1.303106]
[1759066525984,0.22193572,109600.0,109590.0,0.100866]
[1759066526283,0.13073802,109600.0,109590.0,0.942186]
[1759066527684,0.13073802,109600.0,109590.0,1.302986]
[1759066527884,0.13073802,109600.0,109590.0,0.461666]
[1759066528081,0.60364795,109600.0,109590.0,0.00966]
[1759066528286,1.00364795,109600.0,109590.0,0.942146]
[1759066528488,1.00364795,109600.0,109590.0,0.100866]
[1759066529379,0.98273572,109600.0,109590.0,0.100866]
[1759066532186,0.89153802,109600.0,109590.0,0.100866]
[1759066532487,0.98273572,109600.0,109590.0,0.100866]
[1759066533883,0.89153802,109600.0,109590.0,0.100866]
[1759066536401,0.125516,109590.0,109580.0,0.1008677]
[1759066536602,0.50781481,109590.0,109580.0,0.0912077]
[1759066536801,0.41660881,109590.0,109580.0,0.1008677]
[1759066537099,0.50781481,109590.0,109580.0,0.1008677]
[1759066540406,0.41660881,109590.0,109580.0,0.1008677]
[1759066540604,0.50781481,109590.0,109580.0,0.1008677]
[1759066540798,0.05580881,109590.0,109580.0,0.1008677]
[1759066543010,0.50781481,109590.0,109580.0,0.1008677]
[1759066548005,0.41660881,109590.0,109580.0,0.1008677]
[1759066548209,0.05580881,109590.0,109580.0,0.1008677]
[1759066548804,0.03441881,109590.0,109580.0,0.8616677]
[1759066549105,0.02149881,109590.0,109580.0,0.8616677]
[1759066549412,0.49085135,109600.0,109590.0,0.100866]
[1759066552010,0.13005135,109600.0,109590.0,0.100866]
[1759066556311,0.13005135,109600.0,109590.0,0.51068788]
[1759066561115,0.10851921,109600.0,109590.0,0.51068788]
[1759066562015,0.10851921,109600.0,109590.0,1.35144788]
[1759066562215,0.08600921,109600.0,109590.0,1.35144788]
[1759066570824,0.08600921,109600.0,109590.0,1.302426]
[1759066580034,0.13068384,109600.0,109590.0,0.461666]
[1759066580226,0.13068384,109600.0,109590.0,1.302106]
[1759066583541,0.13069596,109600.0,109590.0,1.302106]
[1759066584437,0.13069596,109600.0,109590.0,0.941306]
[1759066584837,0.13069596,109600.0,109590.0,1.302106]
[1759066586441,0.10763596,109600.0,109590.0,1.302106]
[1759066596243,0.10763596,109600.0,109590.0,0.461666]
[1759066596449,0.13069596,109600.0,109590.0,1.301786]
[1759066596942,0.13069596,109600.0,109590.0,2.471786]
[1759066600551,0.05793675,109600.0,109590.0,2.471786]
[1759066607455,0.02162675,109600.0,109590.0,2.477826]
[1759066607867,0.02162675,109600.0,109590.0,2.877826]
[1759066608357,0.03601,109620.0,109610.0,0.1008494]
[1759066608547,0.04515044,109620.0,109610.0,0.1008494]
[1759066609148,0.04515044,109620.0,109610.0,0.9407294]
[1759066609348,0.04515044,109620.0,109610.0,2.1107294]
[1759066611056,0.01315,109620.0,109610.0,2.1107294]
[1759066611258,0.01315,109620.0,109610.0,2.4715294]
[1759066611456,0.01315,109620.0,109610.0,1.3015294]
[1759066611663,0.0855021,109620.0,109610.0,1.3015294]
[1759066611961,0.01315,109620.0,109610.0,1.3015294]
[1759066612664,0.02226472,109620.0,109610.0,1.3015294]
[1759066613359,0.04512472,109620.0,109610.0,0.9406894]
[1759066613568,0.04512472,109620.0,109610.0,1.3014894]
[1759066613763,0.04512472,109620.0,109610.0,0.4616494]
[1759066614066,0.04512472,109620.0,109610.0,1.3014894]
[1759066614574,0.04512472,109620.0,109610.0,1.3014494]
[1759066615272,0.04512472,109620.0,109610.0,0.4616494]
[1759066615565,0.04512472,109620.0,109610.0,1.3014494]
[1759066616170,0.04512472,109620.0,109610.0,0.4616494]
[1759066616371,0.04512472,109620.0,109610.0,1.3014094]
[1759066616567,0.11971611,109620.0,109610.0,1.3014094]
[1759066616870,0.11971611,109620.0,109610.0,0.4616494]
[1759066617070,0.11971611,109620.0,109610.0,1.3014094]
[1759066617272,0.11971611,109620.0,109610.0,0.4616494]
[1759066617468,0.11971611,109620.0,109610.0,1.3014094]
[1759066620275,0.14120223,109620.0,109610.0,1.3014094]
[1759066622170,0.13208751,109620.0,109610.0,0.4616494]
[1759066622572,0.03669,109610.0,109600.0,0.98952867]
[1759066622766,0.05817672,109610.0,109600.0,0.9405317]
[1759066623367,0.05817672,109610.0,109600.0,0.1008517]
[1759066623574,0.14936612,109610.0,109600.0,0.9405317]
[1759066624072,0.05817672,109610.0,109600.0,0.9405317]
[1759066624479,0.14936612,109610.0,109600.0,0.9405317]
[1759066624680,0.14936612,109610.0,109600.0,0.1008517]
[1759066624977,0.05817672,109610.0,109600.0,0.9405317]
[1759066625278,0.05817672,109610.0,109600.0,0.1008517]
[1759066625479,0.05817672,109610.0,109600.0,0.9405317]
[1759066625880,0.05817672,109610.0,109600.0,0.1008517]
[1759066626076,0.05817672,109610.0,109600.0,0.9405317]
[1759066626975,0.05817672,109610.0,109600.0,0.1008517]
[1759066627180,0.05817672,109610.0,109600.0,0.9404917]
[1759066627573,0.51016612,109610.0,109600.0,0.1008577]
[1759066627779,0.91016612,109610.0,109600.0,0.9404977]
[1759066628174,0.91016612,109610.0,109600.0,0.1008577]
[1759066628386,0.91016612,109610.0,109600.0,0.0911977]
[1759066629477,0.91016612,109610.0,109600.0,0.1008577]
[1759066630076,0.81897672,109610.0,109600.0,0.1008577]
[1759066631381,0.91016702,109610.0,109600.0,0.1008577]
[1759066635385,0.81897672,109610.0,109600.0,0.1008577]
[1759066635582,0.41897672,109610.0,109600.0,0.1008577]
[1759066635782,0.05817672,109610.0,109600.0,0.1008577]
[1759066638195,0.14936582,109610.0,109600.0,0.1008577]
[1759066639390,0.05817672,109610.0,109600.0,0.1008577]
[1759066641491,0.05817672,109610.0,109600.0,0.4616577]
[1759066642290,0.05817672,109610.0,109600.0,0.1008577]
[1759066649697,0.02148672,109610.0,109600.0,0.91065467]
[1759066650194,0.11809248,109620.0,109610.0,0.100849]
[1759066650497,0.13957548,109620.0,109610.0,0.100849]
[1759066650994,0.13957548,109620.0,109610.0,0.461649]
[1759066658404,0.13957548,109620.0,109610.0,0.100849]
[1759066668305,0.23075668,109620.0,109610.0,0.100849]
[1759066668511,0.61310834,109620.0,109610.0,0.100849]
[1759066669819,0.52192714,109620.0,109610.0,0.100849]
[1759066674018,0.61310954,109620.0,109610.0,0.100849]
[1759066674710,0.52192714,109620.0,109610.0,0.100849]
[1759066675816,1.01310954,109620.0,109610.0,0.0911907]
[1759066676921,1.85218954,109620.0,109610.0,0.0911907]
[1759066677718,1.01310954,109620.0,109610.0,0.1008507]
[1759066677910,1.85218954,109620.0,109610.0,0.0911907]
[1759066678216,1.01310954,109620.0,109610.0,0.0911907]
[1759066678414,1.85218954,109620.0,109610.0,0.0911907]
[1759066678720,1.01310954,109620.0,109610.0,0.0911907]
[1759066678922,1.85218954,109620.0,109610.0,0.0911907]
[1759066679421,1.01310954,109620.0,109610.0,0.0911907]
[1759066679624,1.85218954,109620.0,109610.0,0.1008507]
[1759066680118,0.13061439,109620.0,109610.0,0.1008507]
[1759066680422,0.13061439,109620.0,109610.0,0.4616507]
[1759066681522,0.13061439,109620.0,109610.0,0.1008507]
[1759066682223,0.13061439,109620.0,109610.0,0.4616507]
[1759066683227,0.13061439,109620.0,109610.0,0.51064767]
[1759066683429,0.13061439,109620.0,109610.0,0.4616507]
[1759066683924,0.021483,109620.0,109610.0,0.91668767]
[1759066685325,0.021483,109620.0,109610.0,1.75572767]
[1759066685527,0.021483,109620.0,109610.0,0.91668767]
[1759066685722,0.021483,109620.0,109610.0,1.75572767]
[1759066685930,0.021483,109620.0,109610.0,0.91668767]
[1759066686434,0.021483,109620.0,109610.0,1.75572767]
[1759066687128,0.03587,109630.0,109620.0,0.1008424]
[1759066687332,0.05738658,109630.0,109620.0,0.1008424]
[1759066689137,0.05738658,109630.0,109620.0,0.9398424]
[1759066691030,0.02151658,109630.0,109620.0,0.9398424]
[1759066691228,0.02151658,109630.0,109620.0,1.7006424]
[1759066691433,0.11792068,109640.0,109630.0,0.1008341]
[1759066691734,0.06713766,109640.0,109630.0,0.4616341]
[1759066691935,0.05825748,109640.0,109630.0,0.4616341]
[1759066692350,0.05825748,109640.0,109630.0,1.3005941]
[1759066692935,0.05825748,109640.0,109630.0,0.4616341]
[1759066693236,0.05825748,109640.0,109630.0,1.3005541]
[1759066693835,0.05825748,109640.0,109630.0,0.4616341]
[1759066694039,0.05825748,109640.0,109630.0,0.9397541]
[1759066695037,0.05825748,109640.0,109630.0,1.3005541]
[1759066695630,0.05825748,109640.0,109630.0,0.9397141]
[1759066696135,0.13244861,109640.0,109630.0,0.9397141]
[1759066698041,0.13244861,109640.0,109630.0,0.1008341]
[1759066698243,0.13244861,109640.0,109630.0,0.9396741]
[1759066703147,0.13244861,109640.0,109630.0,0.1008341]
[1759066703348,0.13244861,109640.0,109630.0,0.9395941]
[1759066703547,0.13244861,109640.0,109630.0,0.1008341]
[1759066703747,0.11095113,109640.0,109630.0,0.9395941]
[1759066703949,0.13242368,109640.0,109630.0,0.9395941]
[1759066704448,0.13242368,109640.0,109630.0,0.1008341]
[1759066704745,0.13242368,109640.0,109630.0,0.9395541]
[1759066707240,0.13242368,109640.0,109630.0,0.1008341]
[1759066707440,0.13242368,109640.0,109630.0,0.9395141]
[1759066711757,0.13242368,109640.0,109630.0,0.1008341]
[1759066711955,0.13242368,109640.0,109630.0,0.9394741]
[1759066714757,0.24501906,109640.0,109630.0,0.1008341]
[1759066714957,0.22358938,109640.0,109630.0,0.1008341]
[1759066715158,0.13242368,109640.0,109630.0,0.9394341]
[1759066722165,0.13242368,109640.0,109630.0,0.1008341]
[1759066722364,0.13242368,109640.0,109630.0,0.9393541]
[1759066726160,0.13242368,109640.0,109630.0,0.1008341]
[1759066726360,0.13242368,109640.0,109630.0,0.9392741]
[1759066735273,0.13242368,109640.0,109630.0,0.98827107]
[1759066735469,0.13242368,109640.0,109630.0,0.9392741]
[1759066736974,0.13242368,109640.0,109630.0,0.98827107]
[1759066739676,0.58438938,109640.0,109630.0,0.1008341]
[1759066740077,0.58438938,109640.0,109630.0,0.9389941]
[1759066740977,0.49322368,109640.0,109630.0,0.9389941]
[1759066741276,0.58438938,109640.0,109630.0,0.1008341]
[1759066741478,0.98438938,109640.0,109630.0,0.9389941]
[1759066741776,1.0052355,109640.0,109630.0,0.0911741]
[1759066745080,1.0052355,109640.0,109630.0,0.1008341]
[1759066746884,1.0052355,109640.0,109630.0,0.0911741]
[1759066747184,0.126834,109630.0,109620.0,0.1008423]
[1759066747377,0.50910655,109630.0,109620.0,0.1008423]
[1759066748184,0.90910655,109630.0,109620.0,0.0911823]
[1759066749282,1.74714655,109630.0,109620.0,0.0911823]
[1759066749979,0.90910655,109630.0,109620.0,0.0911823]
[1759066750185,1.74710655,109630.0,109620.0,0.0911823]
[1759066751884,0.90910655,109630.0,109620.0,0.0911823]
[1759066752086,1.74710655,109630.0,109620.0,0.0911823]
[1759066752491,0.90910655,109630.0,109620.0,0.0911823]
[1759066752686,1.74710655,109630.0,109620.0,0.0911823]
[1759066753581,1.74710655,109630.0,109620.0,0.1008423]
[1759066753780,0.90910655,109630.0,109620.0,0.1008423]
[1759066753990,1.74706655,109630.0,109620.0,0.1008423]
[1759066755292,0.90910655,109630.0,109620.0,0.1008423]
[1759066755589,1.74706655,109630.0,109620.0,0.1008423]
[1759066756093,0.90910655,109630.0,109620.0,0.1008423]
[1759066756296,1.74706655,109630.0,109620.0,0.1008423]
[1759066756596,1.74720768,109630.0,109620.0,0.1008423]
[1759066760299,0.90924768,109630.0,109620.0,0.1008423]
[1759066760497,1.74712768,109630.0,109620.0,0.1008423]
[1759066762600,0.90924768,109630.0,109620.0,0.1008423]
[1759066762799,1.74708768,109630.0,109620.0,0.1008423]
[1759066764498,1.74704768,109630.0,109620.0,0.1008423]
[1759066766095,0.81807368,109630.0,109620.0,0.1008423]
[1759066766298,0.05727368,109630.0,109620.0,0.5008423]
[1759066766901,0.05727368,109630.0,109620.0,0.8616423]
[1759066770701,0.02161368,109630.0,109620.0,1.6993223]
[1759066770914,0.11043113,109640.0,109630.0,0.091174]
[1759066771206,0.13205236,109640.0,109630.0,0.100834]
[1759066774412,0.39596,109650.0,109640.0,0.1008257]
[1759066774606,0.41757136,109650.0,109640.0,0.1008257]
[1759066775205,0.42652216,109650.0,109640.0,0.1008257]
[1759066775806,0.03436136,109650.0,109640.0,0.1008257]
[1759066776315,0.05677136,109650.0,109640.0,0.1008257]
[1759066777109,0.03436136,109650.0,109640.0,0.9383057]
[1759066777309,0.03516,109650.0,109640.0,0.4616257]
[1759066777510,0.03516,109650.0,109640.0,1.2991057]
[1759066778202,0.03516,109650.0,109640.0,1.2990657]
[1759066779416,0.03516,109650.0,109640.0,0.4616257]
[1759066779802,0.03516,109650.0,109640.0,1.2990257]
[1759066780718,0.03516,109650.0,109640.0,1.2989857]
[1759066781211,0.03516,109650.0,109640.0,0.4616257]
[1759066781404,0.03516,109650.0,109640.0,1.2989457]
[1759066782913,0.03516,109650.0,109640.0,0.4616257]
[1759066783114,0.03516,109650.0,109640.0,1.2989057]
[1759066783715,0.03516,109650.0,109640.0,0.4616257]
[1759066784010,0.54857539,109660.0,109640.0,1.3900714]
[1759066784215,0.57015041,109660.0,109640.0,1.3900714]
[1759066784409,0.02241,109650.0,109640.0,1.2989057]
[1759066784604,0.03546,109650.0,109640.0,1.2989057]
[1759066785012,0.47077967,109660.0,109650.0,0.1008174]
[1759066785212,0.49235306,109660.0,109650.0,0.1008174]
[1759066786917,0.03546,109650.0,109640.0,0.9379857]
[1759066787222,0.41783311,109650.0,109640.0,0.1008257]
[1759066787916,0.50899051,109650.0,109640.0,0.1008257]
[1759066792015,0.50899051,109650.0,109640.0,0.0911657]
[1759066792222,0.50899051,109650.0,109640.0,0.1008257]
[1759066792423,0.41783311,109650.0,109640.0,0.1008257]
[1759066792625,0.41784886,109650.0,109640.0,0.1008257]
[1759066793023,0.05704886,109650.0,109640.0,0.1008257]
[1759066793317,0.41784886,109650.0,109640.0,0.1008257]
[1759066795924,0.05704886,109650.0,109640.0,0.1008257]
[1759066796312,0.50900626,109650.0,109640.0,0.1008257]
[1759066806925,0.41784886,109650.0,109640.0,0.1008257]
[1759066809833,0.50900626,109650.0,109640.0,0.1008257]
[1759066813228,0.41784886,109650.0,109640.0,0.1008257]
[1759066814741,0.50900626,109650.0,109640.0,0.1008257]
[1759066815531,0.41784886,109650.0,109640.0,0.1008257]
[1759066816820,0.50900626,109650.0,109640.0,0.1008257]
[1759066817429,0.50900626,109650.0,109630.0,0.0911714]
[1759066817729,0.39477,109640.0,109630.0,0.1008314]
[1759066817928,0.41635886,109640.0,109630.0,0.1008314]
[1759066822734,0.05555886,109640.0,109630.0,0.1008314]
[1759066826338,0.05555886,109640.0,109630.0,0.5008314]
[1759066827039,0.05555886,109640.0,109630.0,0.8616314]
[1759066830739,0.05555886,109640.0,109630.0,1.6978714]
[1759066832641,0.03449886,109640.0,109630.0,1.6978714]
[1759066832843,0.03411,109650.0,109640.0,0.100826]
[1759066833035,0.05575384,109650.0,109640.0,0.100826]
[1759066833235,0.05575384,109650.0,109640.0,0.500826]
[1759066833635,0.05575384,109650.0,109640.0,0.861626]
[1759066833934,0.05575384,109650.0,109640.0,1.697786]
[1759066834540,0.03411,109650.0,109640.0,1.697786]
[1759066837144,0.03411,109650.0,109640.0,1.697706]
[1759066837733,0.03411,109650.0,109640.0,0.861626]
[1759066837940,0.03411,109650.0,109640.0,1.697666]
[1759066838745,0.03411,109650.0,109640.0,1.697626]
[1759066838946,0.03411,109650.0,109640.0,0.861626]
[1759066839145,0.03411,109650.0,109640.0,1.697626]
[1759066839646,0.03411,109650.0,109640.0,1.297626]
[1759066842146,0.03411,109650.0,109640.0,1.297586]
[1759066842447,0.03411,109650.0,109640.0,0.461626]
[1759066842841,0.03411,109650.0,109640.0,1.297546]
[1759066843042,0.03411,109650.0,109640.0,0.461626]
[1759066843247,0.03411,109650.0,109640.0,1.297506]
[1759066843447,0.03411,109650.0,109640.0,0.461626]
[1759066843744,0.03411,109650.0,109640.0,1.297506]
[1759066844452,0.03411,109650.0,109640.0,0.461626]
[1759066844654,0.03411,109650.0,109640.0,1.297466]
[1759066846446,0.03411,109650.0,109640.0,0.461626]
[1759066846651,0.03411,109650.0,109640.0,0.936626]
[1759066846953,0.05571093,109650.0,109640.0,0.936626]
[1759066848450,0.05571093,109650.0,109640.0,1.297426]
[1759066848650,0.03411,109650.0,109640.0,1.297426]
[1759066849340,0.01305,109650.0,109640.0,1.297426]
[1759066851151,0.05676224,109650.0,109640.0,1.297426]
[1759066851355,0.03516,109650.0,109640.0,1.297426]
[1759066851553,0.05676312,109650.0,109640.0,1.297426]
[1759066855351,0.03465312,109650.0,109640.0,1.297426]
[1759066855555,0.11736996,109660.0,109640.0,1.394632]
[1759066855754,0.13897864,109660.0,109640.0,1.394632]
[1759066857060,0.16108864,109660.0,109650.0,0.1008178]
[1759066858558,0.15220499,109660.0,109650.0,0.1008178]
[1759066861866,0.15220499,109660.0,109650.0,0.9362578]
[1759066862762,0.55220499,109660.0,109650.0,0.1008178]
[1759066862961,0.89208835,109660.0,109650.0,0.0911578]
[1759066863366,0.91307085,109660.0,109650.0,0.1008178]
[1759066864466,1.00422035,109660.0,109650.0,0.1008178]
[1759066873675,1.00422035,109660.0,109650.0,0.0911578]
[1759066874267,1.00422035,109660.0,109650.0,0.1008178]
[1759066875474,1.83942035,109660.0,109650.0,0.1008178]
[1759066877671,1.83942035,109660.0,109650.0,0.0911578]
[1759066877977,0.1255061,109640.0,109630.0,0.9359487]
[1759066878177,0.50791478,109640.0,109630.0,0.9359487]
[1759066878374,0.50791478,109640.0,109630.0,0.1008287]
[1759066878773,0.05594868,109640.0,109630.0,0.4616287]
[1759066882274,0.03434,109640.0,109630.0,0.4616287]
[1759066896586,0.08756967,109660.0,109640.0,0.1919922]
[1759066896792,0.13068511,109660.0,109650.0,0.1008178]
[1759066900588,0.13068145,109660.0,109650.0,0.1008178]
[1759066903977,0.13068145,109660.0,109650.0,0.9353778]
[1759066904390,0.13068145,109660.0,109650.0,1.2961778]
[1759066906386,0.13068145,109660.0,109650.0,0.4616178]
[1759066906588,0.13068145,109660.0,109650.0,1.2960978]
[1759066912593,0.13068145,109660.0,109650.0,1.2959778]
[1759066914692,0.13068145,109660.0,109650.0,0.4616178]
[1759066914897,0.13068145,109660.0,109650.0,1.2959778]
[1759066915597,0.13068145,109660.0,109650.0,0.4616178]
[1759066915786,0.13068145,109660.0,109650.0,1.2959378]
[1759066915991,0.13068145,109660.0,109650.0,0.4616178]
[1759066916298,0.13068145,109660.0,109650.0,1.2959378]
[1759066916596,0.13068145,109660.0,109650.0,0.4616178]
[1759066916898,0.13068145,109660.0,109650.0,0.9351378]
[1759066917196,0.13068145,109660.0,109650.0,0.9350978]
[1759066917392,0.13068145,109660.0,109650.0,0.1008178]
[1759066917596,0.13068145,109660.0,109650.0,0.9350978]
[1759066920501,0.13068145,109660.0,109650.0,1.2958978]
[1759066921796,0.13068145,109660.0,109650.0,0.4616178]
[1759066922005,0.13068145,109660.0,109650.0,1.2958578]
[1759066933607,0.13068145,109660.0,109650.0,0.1008178]
[1759066933808,0.13068145,109660.0,109650.0,0.9348178]
[1759066933997,0.13068145,109660.0,109650.0,0.1008178]
[1759066934197,0.13068145,109660.0,109650.0,0.9348178]
[1759066935408,0.13068145,109660.0,109650.0,0.1008178]
[1759066935609,0.13068145,109660.0,109650.0,0.9348178]
[1759066936810,0.13068145,109660.0,109650.0,1.2956178]
[1759066937009,0.13068145,109660.0,109650.0,0.9348178]
[1759066937210,0.13068145,109660.0,109650.0,1.2956178]
[1759066937504,0.13068145,109660.0,109650.0,0.9348178]
[1759066938312,0.13068145,109660.0,109650.0,0.1008178]
[1759066938512,0.13068145,109660.0,109650.0,1.2708178]
[1759066938706,0.13068145,109660.0,109650.0,2.1047378]
[1759066939509,0.89148145,109660.0,109650.0,0.1008178]
[1759066939809,0.98263095,109660.0,109650.0,0.0911578]
[1759066944308,0.96098917,109660.0,109650.0,0.0911578]
[1759066944512,0.98263094,109660.0,109650.0,0.0911578]
[1759066945009,0.1262192,109650.0,109640.0,0.0911615]
[1759066945214,0.50866097,109650.0,109640.0,0.0911615]
[1759066948620,0.90866097,109650.0,109640.0,0.0911615]
[1759066952719,0.81750177,109650.0,109640.0,0.1008215]
[1759066952919,1.65138177,109650.0,109640.0,0.1008215]
[1759066953119,0.81750177,109650.0,109640.0,0.1008215]
[1759066953320,0.90865957,109650.0,109640.0,0.1008215]
[1759066954522,0.81750177,109650.0,109640.0,0.1008215]
[1759066955413,0.90865957,109650.0,109640.0,0.1008215]
[1759066956526,0.81750177,109650.0,109640.0,0.1008215]
[1759066958124,0.03506,109650.0,109640.0,0.5008215]
[1759066958417,0.03506,109650.0,109640.0,0.8616215]
[1759066959024,0.47025967,109660.0,109650.0,0.1008178]
[1759066959217,0.49186522,109660.0,109650.0,0.1008178]
[1759066959518,0.13106522,109660.0,109650.0,0.1008178]
[1759066959820,0.10945967,109660.0,109650.0,0.4616178]
[1759066960222,0.13106488,109660.0,109650.0,0.4616178]
[1759066960518,0.10945967,109660.0,109650.0,0.4616178]
[1759066961222,0.10945967,109660.0,109650.0,1.2954178]
[1759066961528,0.13102256,109660.0,109650.0,0.9346178]
[1759066962031,0.13102256,109660.0,109650.0,0.1008178]
[1759066962323,0.13102256,109660.0,109650.0,0.9346178]
[1759066962525,0.13102256,109660.0,109650.0,0.1008178]
[1759066965228,0.13102256,109660.0,109650.0,0.9345378]
[1759066966024,0.10945967,109660.0,109650.0,1.6953378]
[1759066967224,0.08756967,109660.0,109650.0,1.6953378]
[1759066967419,0.07427967,109660.0,109650.0,1.6953378]
[1759066967617,0.38277547,109670.0,109650.0,1.6953378]
[1759066967823,0.42622871,109670.0,109660.0,0.1008095]
[1759066968023,0.40466547,109670.0,109660.0,0.1008095]
[1759066968728,0.38277547,109670.0,109660.0,0.1008095]
[1759066969121,0.40452547,109670.0,109660.0,0.1008095]
[1759066970025,0.40452547,109670.0,109660.0,0.9344495]
[1759066971028,0.40452547,109670.0,109660.0,0.1008095]
[1759066971328,0.40452547,109670.0,109660.0,0.9344095]
[1759066971627,0.47766111,109670.0,109660.0,0.9344095]
[1759066972427,0.39572,109680.0,109670.0,0.1008012]
[1759066972626,0.41726654,109680.0,109670.0,0.1008012]
[1759066973325,0.39572,109680.0,109670.0,0.1008012]
[1759066974325,0.39572,109680.0,109670.0,0.9343212]
[1759066975133,0.46992781,109680.0,109670.0,0.9343212]
[1759066975832,0.47922273,109680.0,109670.0,0.9343212]
[1759066977129,0.47922273,109680.0,109670.0,0.9342812]
[1759066978128,0.47922273,109680.0,109670.0,0.9342412]
[1759066980033,0.47922273,109680.0,109670.0,0.1008012]
[1759066980233,0.57035563,109680.0,109670.0,0.1008012]
[1759066980734,0.1258712,109670.0,109660.0,0.1008055]
[1759066980931,0.4866712,109670.0,109660.0,0.9342055]
[1759066981333,0.4866712,109670.0,109660.0,0.9341655]
[1759066981533,0.4866712,109670.0,109660.0,0.1008055]
[1759066981733,0.4866712,109670.0,109660.0,0.9341655]
[1759066982134,0.4866712,109670.0,109660.0,0.1008055]
[1759066982431,0.4866712,109670.0,109660.0,0.9341655]
[1759066982632,0.4866712,109670.0,109660.0,0.1008055]
[1759066985129,0.39553,109670.0,109660.0,0.1008055]
[1759066985334,0.4170827,109670.0,109660.0,0.1008055]
[1759066985635,0.5082239,109670.0,109660.0,0.1008055]
[1759066991837,0.5082239,109670.0,109660.0,0.0911495]
[1759066992138,0.9082239,109670.0,109660.0,0.0911495]
[1759066994633,1.7414239,109670.0,109660.0,0.0911495]
[1759066997643,0.1274095,109660.0,109650.0,0.091154]
[1759066997842,0.5097622,109660.0,109650.0,0.091154]
[1759066999444,0.4186127,109660.0,109650.0,0.100814]
[1759067000546,0.0578127,109660.0,109650.0,0.100814]
[1759067000743,0.4186127,109660.0,109650.0,0.100814]
[1759067001746,0.0578127,109660.0,109650.0,0.100814]
[1759067001946,0.4186127,109660.0,109650.0,0.100814]
[1759067002842,0.0578127,109660.0,109650.0,0.100814]
[1759067004852,0.03626,109660.0,109650.0,0.100814]
[1759067006050,0.05786131,109660.0,109650.0,0.100814]
[1759067006249,0.03626,109660.0,109650.0,0.100814]
[1759067006552,0.05786355,109660.0,109650.0,0.100814]
[1759067007748,0.03626,109660.0,109650.0,0.100814]
[1759067007951,0.07947264,109660.0,109650.0,0.100814]
[1759067018669,0.07947264,109660.0,109650.0,0.861614]
[1759067019466,0.07947264,109660.0,109650.0,0.461614]
[1759067022962,0.04321264,109660.0,109650.0,0.874624]
[1759067023260,2e-08,109660.0,109650.0,0.939839]
[1759067025355,2e-08,109660.0,109650.0,0.874624]
[1759067031469,2e-08,109660.0,109650.0,0.939839]
[1759067032764,2e-08,109660.0,109650.0,0.874624]
[1759067033969,2e-08,109660.0,109650.0,1.707384]
[1759067036075,2e-08,109660.0,109650.0,1.707344]
[1759067037277,2e-08,109660.0,109650.0,0.874624]
[1759067037475,2e-08,109660.0,109650.0,1.707304]
[1759067039077,2e-08,109660.0,109650.0,1.707264]
[1759067042081,2e-08,109660.0,109650.0,1.772479]
[1759067043781,2e-08,109660.0,109650.0,1.772439]
[1759067044172,2e-08,109660.0,109650.0,0.939839]
[1759067044372,2e-08,109660.0,109650.0,1.772399]
[1759067046579,0.07420781,109680.0,109670.0,0.0971811]
[1759067046772,0.02415095,109690.0,109670.0,1.4037122]
[1759067047076,0.04616095,109690.0,109680.0,0.1132028]
[1759067047771,0.87985729,109690.0,109680.0,0.9457228]
[1759067047972,0.43688781,109690.0,109680.0,0.9457228]
[1759067048168,0.43688781,109690.0,109680.0,0.9566328]
[1759067048578,0.43688781,109690.0,109680.0,0.1241128]
[1759067048787,0.79768781,109690.0,109680.0,0.1132028]
[1759067048981,0.88881231,109690.0,109680.0,0.0911328]
[1759067051092,0.89787344,109690.0,109680.0,0.0911328]
[1759067051590,0.97192883,109690.0,109680.0,0.0911328]
[1759067053689,0.1258628,109680.0,109670.0,0.0911353]
[1759067053883,0.8866628,109680.0,109670.0,0.0911353]
[1759067056185,0.0911455,109670.0,109660.0,0.0911433]
[1759067056488,0.1258755,109670.0,109660.0,0.0911433]
[1759067057187,0.50802103,109670.0,109660.0,0.0911433]
[1759067057385,0.90802103,109670.0,109660.0,0.0911433]
[1759067057784,0.90802103,109670.0,109650.0,1.24207163]
[1759067058093,0.4878195,109660.0,109650.0,0.0911539]
[1759067058488,0.1270278,109650.0,109640.0,0.0911607]
[1759067058690,0.58382333,109650.0,109640.0,0.0911607]
[1759067058890,0.58382333,109650.0,109640.0,0.1139107]
[1759067059085,0.58182333,109650.0,109640.0,0.1139107]
[1759067059285,0.57982333,109650.0,109640.0,0.1139107]
[1759067060392,0.49266553,109650.0,109640.0,0.1139107]
[1759067061087,0.47116806,109650.0,109640.0,0.1139107]
[1759067061292,0.47116806,109650.0,109640.0,0.1189107]
[1759067061993,0.47116806,109650.0,109640.0,0.1219107]
[1759067067395,0.09697806,109650.0,109640.0,0.8955407]
[1759067067586,0.09697806,109650.0,109640.0,0.94441233]
[1759067067783,0.09697806,109650.0,109640.0,1.77685233]
[1759067067989,0.09697806,109650.0,109640.0,1.7279807]
[1759067068185,0.39667,109660.0,109650.0,0.1139078]
[1759067069598,0.39667,109660.0,109650.0,0.1169078]
[1759067070692,0.03587,109660.0,109650.0,0.4777078]
[1759067070897,0.03587,109660.0,109650.0,1.3101478]
[1759067071097,0.03587,109660.0,109650.0,0.4777078]
[1759067071302,0.03587,109660.0,109650.0,1.3101478]
[1759067072301,0.03587,109660.0,109650.0,0.9493478]
[1759067073303,0.03587,109660.0,109650.0,0.1169078]
[1759067073597,0.39490553,109670.0,109660.0,0.1138995]
[1759067073598,0.39604,109670.0,109660.0,0.1138995]
[1759067073996,0.03524,109670.0,109660.0,0.1138995]
[1759067074496,0.03524,109670.0,109660.0,0.4746995]
[1759067075603,0.02248,109670.0,109660.0,0.8856095]